bitfinex-derivatives/quotes_SOLF0:USTF0_20251208
["timestamp","ask_amount","ask_price","bid_price","bid_amount"]
[1765229214424,3.33,133.37,133.35,0.04860039]
[1765229215535,10.13069882,133.38,133.35,0.04860039]
[1765229216428,3.33,133.37,133.35,0.04860039]
[1765229218733,3.33,133.36,133.35,0.04860039]
[1765229219434,3.33,133.35,133.31,70.4902]
[1765229219626,3.33,133.35,133.31,63.74]
[1765229220331,0.05640842,133.34,133.31,63.74]
[1765229221027,3.15640842,133.34,133.31,63.74]
[1765229221539,3.15640842,133.34,133.29,6.7512]
[1765229221540,3.1,133.33,133.29,6.7512]
[1765229222130,9.8498,133.33,133.27,63.74]
[1765229222335,3.15071332,133.31,133.27,70.4925]
[1765229222831,3.15071332,133.31,133.21,3.97695025]
[1765229223033,108.1607,133.25,133.21,3.97695025]
[1765229223232,5.41489292,133.24,133.21,3.97695025]
[1765229223540,0.04923537,133.24,133.21,3.97695025]
[1765229224133,3.14923537,133.24,133.21,3.97695025]
[1765229224535,0.04923537,133.24,133.21,3.97695025]
[1765229225344,3.14923537,133.24,133.21,3.97695025]
[1765229225536,0.04923537,133.24,133.21,3.97695025]
[1765229227435,0.04923537,133.24,133.21,10.73225025]
[1765229229637,0.04923537,133.24,133.22,6.755]
[1765229230342,5.4042348,133.3,133.24,105.065]
[1765229230547,3.1,133.31,133.24,105.065]
[1765229230935,3.1,133.31,133.25,6.7533]
[1765229231348,0.05370685,133.29,133.27,0.04971703]
[1765229231541,0.05370685,133.29,133.27,6.80201703]
[1765229233246,0.05370685,133.29,133.27,70.58201703]
[1765229233845,3.1,133.34,133.28,6.752]
[1765229234752,0.05135869,133.32,133.3,0.04870853]
[1765229234955,3.15135869,133.32,133.3,0.04870853]
[1765229236457,9.90155869,133.32,133.3,0.04870853]
[1765229236653,3.1,133.31,133.3,0.04870853]
[1765229236954,3.1,133.29,133.23,119.0]
[1765229237261,3.1,133.29,133.23,63.78]
[1765229237460,6.7528,133.27,133.23,63.78]
[1765229237756,3.1,133.26,133.23,63.78]
[1765229237958,3.15511951,133.26,133.23,63.83471535]
[1765229238654,3.15511951,133.26,133.23,0.05471535]
[1765229239160,8.55935431,133.26,133.23,0.05471535]
[1765229239354,3.1,133.25,133.23,0.05471535]
[1765229240559,3.1,133.23,133.21,3.97695025]
[1765229240758,3.1,133.22,133.21,3.97695025]
[1765229241861,6.80473906,133.23,133.21,3.97695025]
[1765229242262,0.05003906,133.23,133.21,3.97695025]
[1765229250357,6.87838617,133.31,133.21,229.56245025]
[1765229250660,5.40127075,133.32,133.23,114.46748662]
[1765229250869,5.40172205,133.33,133.23,114.46748662]
[1765229251066,3.1,133.33,133.23,9.39478662]
[1765229251369,0.04786864,133.29,133.27,0.04773279]
[1765229251665,0.0472982,133.29,133.27,0.04773279]
[1765229253367,3.1472982,133.29,133.27,0.04773279]
[1765229253567,0.0472982,133.29,133.27,0.04773279]
[1765229255572,3.1472982,133.29,133.27,0.04773279]
[1765229256072,0.0472982,133.29,133.27,0.04773279]
[1765229258071,12.17361046,133.34,133.27,0.04773279]
[1765229258268,5.42431046,133.33,133.26,105.0456]
[1765229258469,3.1,133.35,133.29,6.7515]
[1765229258769,5.42805181,133.34,133.3,63.8]
[1765229258970,9.97838617,133.38,133.3,63.8]
[1765229259173,0.04871521,133.35,133.33,0.05313926]
[1765229259476,5.0701792,133.41,133.33,0.05313926]
[1765229259477,5.43214714,133.39,133.33,0.05313926]
[1765229259775,3.1,133.42,133.32,114.39398662]
[1765229259975,5.43218676,133.41,133.32,114.39398662]
[1765229260271,5.43218676,133.41,133.3,191.2739]
[1765229260272,3.1,133.39,133.3,168.8139]
[1765229260583,0.04777651,133.36,133.33,0.05730458]
[1765229260870,0.04777651,133.36,133.33,6.80670458]
[1765229261078,0.04777651,133.36,133.33,0.05730458]
[1765229261371,0.04777651,133.36,133.34,6.7489]
[1765229263577,0.04777651,133.36,133.34,70.5289]
[1765229266872,5.42478958,133.4,133.36,6.7479]
[1765229267067,9.8452,133.42,133.36,125.7479]
[1765229267268,8.52435076,133.42,133.36,119.0]
[1765229267581,5.42435076,133.44,133.36,223.9666]
[1765229268073,0.05547782,133.41,133.39,0.0486515]
[1765229270380,3.17,133.47,133.39,223.9928515]
[1765229270875,146.59454022,133.48,133.39,223.9928515]
[1765229271073,8.58483427,133.5,133.41,104.9294]
[1765229271275,0.05381498,133.47,133.44,0.04989886]
[1765229272279,3.17,133.5,133.45,6.7434]
[1765229272479,6.7403,133.52,133.46,63.76]
[1765229272678,6.7403,133.52,133.46,70.5027]
[1765229273281,0.05394752,133.5,133.48,0.05277674]
[1765229277088,3.22394752,133.5,133.48,0.05277674]
[1765229277288,0.05394752,133.5,133.48,0.05277674]
[1765229278390,3.22394752,133.5,133.48,0.05277674]
[1765229278590,3.17,133.49,133.42,63.72]
[1765229278786,9.9103,133.52,133.43,104.9136]
[1765229279691,0.05569311,133.49,133.46,0.05229366]
[1765229279891,0.05569311,133.49,133.46,63.77229366]
[1765229280496,0.05569311,133.49,133.46,70.51509366]
[1765229281185,3.13,133.55,133.48,104.8761]
[1765229281385,3.13,133.58,133.49,104.8681]
[1765229281590,3.13,133.58,133.5,63.72]
[1765229281890,6.7363,133.6,133.51,104.8517]
[1765229282397,0.05160165,133.57,133.54,0.05553888]
[1765229282594,0.05160165,133.57,133.55,63.72]
[1765229283104,3.18160165,133.57,133.54,0.05553888]
[1765229284395,3.13,133.56,133.54,0.05553888]
[1765229286092,0.05160165,133.57,133.54,0.05553888]
[1765229286891,3.18160165,133.57,133.54,0.05553888]
[1765229287398,3.13,133.56,133.54,0.05553888]
[1765229291100,0.05160165,133.57,133.54,0.05553888]
[1765229293398,3.18160165,133.57,133.54,0.05553888]
[1765229294592,0.05160165,133.57,133.54,0.05553888]
[1765229295309,0.05160165,133.57,133.55,6.7384]
[1765229300109,3.35160165,133.57,133.54,0.05553888]
[1765229301308,0.05160165,133.57,133.54,0.05553888]
[1765229301508,3.35160165,133.57,133.54,0.05553888]
[1765229301713,3.3,133.55,133.54,0.05553888]
[1765229301906,8.71152804,133.55,133.54,0.05553888]
[1765229302304,15.58991421,133.55,133.54,0.05553888]
[1765229306730,3.3,133.53,133.49,6.7411]
[1765229306927,5.41152804,133.52,133.49,6.7411]
[1765229307127,3.3,133.53,133.49,6.7411]
[1765229307426,5.64301004,133.52,133.49,6.7411]
[1765229307626,5.64301004,133.51,133.49,6.7411]
[1765229307834,0.05081208,133.51,133.49,6.79533534]
[1765229310838,6.87838617,133.57,133.51,104.8507]
[1765229311043,5.032e-05,133.56,133.53,104.8366]
[1765229311230,6.87838617,133.6,133.54,104.825]
[1765229311532,6.87838617,133.6,133.57,6.7371]
[1765229311727,6.87838617,133.6,133.57,63.66]
[1765229311926,6.92971386,133.6,133.57,63.71324434]
[1765229312133,0.05132769,133.6,133.58,6.7369]
[1765229313537,3.90605364,133.62,133.57,168.51404434]
[1765229313726,3.3,133.64,133.57,168.51404434]
[1765229314533,0.05500015,133.62,133.59,6.736]
[1765229314832,0.05500015,133.62,133.59,6.78692583]
[1765229316536,0.05500015,133.62,133.59,0.05092583]
[1765229316733,3.35500015,133.62,133.59,0.05092583]
[1765229317442,0.05500015,133.62,133.59,0.05092583]
[1765229318443,0.05500015,133.62,133.59,6.78712583]
[1765229318650,0.05500015,133.62,133.59,0.05092583]
[1765229319043,3.35500015,133.62,133.59,0.05092583]
[1765229319241,0.05500015,133.62,133.59,0.05092583]
[1765229319938,0.05500015,133.62,133.6,6.7357]
[1765229320138,3.3,133.68,133.62,104.7652]
[1765229320345,9.2057207,133.7,133.64,104.75]
[1765229320540,12.5057207,133.71,133.64,104.75]
[1765229320744,3.3,133.71,133.64,104.75]
[1765229321242,0.04764791,133.69,133.67,6.7321]
[1765229321446,0.05183111,133.69,133.68,63.64]
[1765229321644,3.35183111,133.69,133.67,0.04838246]
[1765229321842,3.35183111,133.69,133.67,63.68838246]
[1765229322749,0.05183111,133.69,133.67,63.68838246]
[1765229323137,5.63970445,133.68,133.67,63.68838246]
[1765229323343,0.05183111,133.69,133.67,63.68838246]
[1765229323748,0.05183111,133.69,133.67,70.42058246]
[1765229325749,3.3,133.75,133.7,6.7304]
[1765229326050,3.3,133.73,133.71,63.62]
[1765229326453,8.92363834,133.72,133.71,63.62]
[1765229326954,3.3,133.71,133.7,0.05243073]
[1765229327153,8.92363834,133.71,133.69,0.05529456]
[1765229327355,3.3,133.71,133.69,0.05529456]
[1765229327553,0.05117942,133.72,133.69,0.05529456]
[1765229327856,5.62006531,133.71,133.69,0.05529456]
[1765229328149,0.05117942,133.72,133.69,0.05529456]
[1765229329147,0.05117942,133.72,133.69,6.78659456]
[1765229329454,0.05117942,133.72,133.69,0.05529456]
[1765229329644,0.05117942,133.72,133.7,6.7307]
[1765229329845,0.05117942,133.72,133.71,63.6]
[1765229331150,5.61252542,133.77,133.71,63.6]
[1765229331340,5.60716496,133.78,133.74,6.7288]
[1765229331542,113.8045207,133.84,133.75,63.6]
[1765229331543,3.29,133.8,133.75,63.6]
[1765229332144,3.29,133.83,133.75,168.2611]
[1765229332348,3.33951516,133.79,133.76,0.04992561]
[1765229332548,3.34755035,133.79,133.76,0.04992561]
[1765229334453,10.07405035,133.79,133.76,0.04992561]
[1765229334649,3.29,133.78,133.76,0.04992561]
[1765229336252,3.34755035,133.79,133.76,0.04992561]
[1765229336454,0.05755035,133.79,133.76,6.77772561]
[1765229336949,0.05755035,133.79,133.76,0.04992561]
[1765229337156,0.05755035,133.79,133.77,6.7273]
[1765229338060,3.34755035,133.79,133.76,0.04992561]
[1765229339258,0.05755035,133.79,133.76,0.04992561]
[1765229341064,0.05755035,133.79,133.77,6.7273]
[1765229341659,0.05755035,133.79,133.78,63.58]
[1765229343265,3.34755035,133.79,133.76,0.04992561]
[1765229344451,0.05755035,133.79,133.76,0.04992561]
[1765229344655,0.05755035,133.79,133.76,3.33992561]
[1765229345058,0.05755035,133.79,133.77,6.7271]
[1765229345272,0.05755035,133.79,133.78,66.9]
[1765229345565,3.29,133.83,133.79,3.34]
[1765229345756,8.74873745,133.86,133.79,3.34]
[1765229345963,5.57873745,133.85,133.79,3.34]
[1765229346465,0.05087501,133.83,133.81,0.05558437]
[1765229350066,3.22087501,133.83,133.81,0.05558437]
[1765229350662,0.05087501,133.83,133.81,10.12078437]
[1765229351470,0.05087501,133.83,133.82,3.34]
[1765229351866,0.05087501,133.83,133.81,10.12078437]
[1765229352167,0.05087501,133.83,133.82,66.88]
[1765229353265,3.17,133.89,133.84,6.7238]
[1765229353473,5.5907084,133.88,133.85,3.34]
[1765229353773,3.17,133.89,133.86,63.54]
[1765229353965,3.17,133.87,133.86,63.54]
[1765229354468,8.76834776,133.87,133.86,63.54]
[1765229356072,8.76834776,133.87,133.85,0.05007925]
[1765229356272,5.59834776,133.86,133.85,0.05007925]
[1765229358681,8.89834776,133.86,133.85,0.05007925]
[1765229360374,3.3,133.85,133.82,63.54]
[1765229360575,5.59834776,133.84,133.82,63.54]
[1765229360776,5.59834776,133.83,133.82,63.54]
[1765229362889,3.3,133.82,133.81,0.05464017]
[1765229363069,8.89834776,133.82,133.81,0.05464017]
[1765229370987,5.59834776,133.82,133.81,0.05464017]
[1765229371188,5.59834776,133.82,133.81,3.38464017]
[1765229371384,0.05291015,133.84,133.82,6.7249]
[1765229371590,0.05291015,133.84,133.83,3.33]
[1765229372184,3.3,133.88,133.85,3.33]
[1765229372381,12.5057207,133.91,133.85,3.33]
[1765229373282,3.355587,133.89,133.87,0.05656389]
[1765229373680,10.27331971,133.89,133.87,0.05656389]
[1765229374076,3.3,133.88,133.87,0.05656389]
[1765229375498,3.3,133.87,133.82,10.0545]
[1765229375683,3.3,133.86,133.81,63.54]
[1765229375887,3.3,133.86,133.82,3.33]
[1765229376389,0.05713558,133.85,133.83,0.05563023]
[1765229376579,3.35713558,133.85,133.83,0.05563023]
[1765229378198,0.05713558,133.85,133.83,0.05563023]
[1765229379490,0.05713558,133.85,133.83,6.77983023]
[1765229380890,3.35713558,133.85,133.83,6.77983023]
[1765229381096,3.35713558,133.85,133.83,0.05563023]
[1765229381593,0.05713558,133.85,133.83,0.05563023]
[1765229381906,0.05713558,133.85,133.83,3.38563023]
[1765229382103,9.706e-05,133.9,133.87,107.899]
[1765229382307,3.3,133.97,133.91,3.33]
[1765229382308,3.3,133.95,133.91,3.33]
[1765229382490,14.24473834,133.99,133.93,3.33]
[1765229382802,3.3,134.02,133.97,3.33]
[1765229383194,0.0553615,134.01,133.98,3.38275949]
[1765229383492,0.0553615,134.01,133.98,66.90275949]
[1765229383697,3.3,133.99,133.98,0.05275949]
[1765229383904,3.3,133.98,133.95,63.52]
[1765229384197,3.3,134.01,133.96,3.33]
[1765229384417,5.59248626,134.0,133.96,3.33]
[1765229384606,3.3,134.01,133.96,3.33]
[1765229384905,5.64085942,134.0,133.97,10.09746716]
[1765229385204,0.04724923,134.0,133.97,10.09746716]
[1765229385404,0.04724923,134.0,133.98,10.0465]
[1765229385609,3.3,134.04,133.99,66.83]
[1765229385904,3.3,134.02,133.99,63.5]
[1765229386302,7.301e-05,134.06,134.0,325.2663349]
[1765229386506,3.3,134.13,134.05,110.36406745]
[1765229386705,3.3,134.13,134.06,63.5]
[1765229387001,3.3,134.13,134.0,104.4663]
[1765229387002,3.3,134.09,134.05,63.5]
[1765229387213,3.3,134.09,134.04,63.5]
[1765229387393,3.3,134.09,134.01,6.7152]
[1765229387593,3.3,134.09,134.02,63.5]
[1765229387994,0.05446989,134.07,134.04,0.05318378]
[1765229388193,3.35446989,134.07,134.04,0.05318378]
[1765229389104,3.35446989,134.07,133.99,6.7162]
[1765229389298,3.35446989,134.07,134.0,63.48]
[1765229390203,3.35446989,134.07,134.02,0.04855231]
[1765229390403,3.25,134.05,134.02,0.04855231]
[1765229390606,3.25,134.05,133.98,63.48]
[1765229391105,9.9638,134.05,133.98,63.48]
[1765229391310,3.25,134.04,133.98,63.48]
[1765229391699,0.05622279,134.02,134.0,0.04874452]
[1765229391899,0.05495084,134.02,134.0,0.04874452]
[1765229396310,3.30495084,134.02,134.0,0.04874452]
[1765229396503,0.05495084,134.02,134.0,63.50874452]
[1765229397615,3.30495084,134.02,134.0,63.50874452]
[1765229398208,3.30495084,134.02,134.0,0.04874452]
[1765229398610,3.30495084,134.02,133.97,63.46]
[1765229398811,3.30495084,134.02,133.94,6.7186]
[1765229399006,3.25,134.01,133.95,63.46]
[1765229399208,3.25,134.0,133.92,6.7196]
[1765229399440,3.25,133.99,133.93,63.46]
[1765229399810,0.05167906,133.97,133.95,0.05471705]
[1765229400615,3.25,134.02,133.95,6.77281705]
[1765229400822,3.25,134.05,133.97,104.4902]
[1765229401122,3.25,134.04,133.97,63.46]
[1765229401315,3.25,134.02,133.97,63.46]
[1765229401816,3.29,134.0,133.98,0.04967548]
[1765229403421,0.05318819,134.01,133.98,0.04967548]
[1765229403614,3.34318819,134.01,133.98,0.04967548]
[1765229403917,0.05318819,134.01,133.99,6.7161]
[1765229404118,0.05318819,134.01,134.0,63.46]
[1765229404822,3.29,134.09,134.02,104.4514]
[1765229405014,3.29,134.09,134.01,104.4598]
[1765229405721,0.05349699,134.06,134.04,0.05579471]
[1765229405912,0.05349699,134.06,134.04,63.51579471]
[1765229406319,0.05349699,134.06,134.04,70.22939471]
[1765229406520,3.29,134.13,134.06,104.4185]
[1765229406912,3.29,134.13,134.08,6.7115]
[1765229407119,3.29,134.13,134.09,63.46]
[1765229407317,3.29,134.16,134.09,63.46]
[1765229407526,3.339491,134.14,134.11,0.05650378]
[1765229407715,0.049491,134.14,134.11,0.05650378]
[1765229408227,3.339491,134.14,134.11,0.05650378]
[1765229408632,3.339491,134.14,134.08,63.44]
[1765229408816,3.29,134.14,134.08,63.44]
[1765229409422,3.29,134.14,134.06,5.93846745]
[1765229409727,3.34492391,134.11,134.09,0.05461655]
[1765229410021,3.34492391,134.11,134.04,63.44]
[1765229410022,3.29,134.1,134.04,63.44]
[1765229410225,3.29,134.09,134.04,63.44]
[1765229410823,0.05494614,134.08,134.05,0.04828219]
[1765229411226,0.05494614,134.08,134.06,104.4217]
[1765229411542,3.29,134.15,134.07,1.5]
[1765229411820,3.29,134.15,134.08,63.44]
[1765229412014,3.29,134.12,134.07,63.44]
[1765229412717,0.0548212,134.11,134.08,0.04773858]
[1765229413413,5.54948283,134.14,134.11,104.3768]
[1765229413617,8.84112479,134.19,134.13,104.3673]
[1765229413820,3.93051776,134.21,134.15,104.3515]
[1765229414022,7.22051776,134.21,134.16,70.1275]
[1765229414226,3.93051776,134.21,134.16,63.42]
[1765229414612,0.05622739,134.2,134.17,0.0481386]
[1765229414812,0.05622739,134.2,134.18,6.7065]
[1765229415529,0.05622739,134.2,134.17,0.0481386]
[1765229415735,0.05622739,134.2,134.19,63.42]
[1765229416418,4.515e-05,134.21,134.17,5.98660605]
[1765229416630,3.29004515,134.21,134.18,63.42]
[1765229417423,0.05503052,134.21,134.17,0.0481386]
[1765229417629,0.05503052,134.21,134.18,63.4]
[1765229417836,3.34503052,134.21,134.18,63.4]
[1765229418227,0.05503052,134.21,134.18,167.7248]
[1765229418423,3.18,134.32,134.22,104.2968]
[1765229418632,8.71357879,134.31,134.23,63.4]
[1765229418832,3.18,134.29,134.19,110.25866745]
[1765229419040,5.53357041,134.28,134.2,167.7128]
[1765229419241,113.32289788,134.33,134.2,167.7128]
[1765229419242,3.18,134.33,134.24,104.2793]
[1765229419542,124.01816542,134.36,134.27,0.05672068]
[1765229419543,0.05635419,134.3,134.27,0.05672068]
[1765229419927,0.05240012,134.3,134.27,0.0566762]
[1765229420430,3.23240012,134.3,134.27,63.4566762]
[1765229420636,3.18,134.28,134.24,63.38]
[1765229420935,3.18,134.28,134.19,12.64466745]
[1765229421136,3.18,134.28,134.23,63.38]
[1765229421739,0.05720598,134.27,134.24,0.05635172]
[1765229423356,3.23720598,134.27,134.24,0.05635172]
[1765229423554,0.05720598,134.27,134.24,0.05635172]
[1765229424151,5.53153125,134.3,134.24,0.05635172]
[1765229424456,9.8772,134.38,134.3,6.7006]
[1765229424656,3.18,134.38,134.31,63.36]
[1765229424853,110.08406745,134.42,134.31,167.587]
[1765229425057,3.18,134.41,134.33,104.2118]
[1765229425261,122.34896533,134.45,134.34,104.2026]
[1765229425451,3.18,134.44,134.36,0.05602355]
[1765229425652,0.05361875,134.41,134.34,63.36]
[1765229425851,3.23361875,134.41,134.36,0.05453448]
[1765229426362,3.18,134.4,134.36,63.41453448]
[1765229426557,3.18,134.39,134.36,0.05453448]
[1765229426958,107.3504,134.39,134.36,0.05453448]
[1765229427259,107.3723,134.36,134.26,5.93846745]
[1765229427564,3.18,134.34,134.27,63.34]
[1765229428264,0.05148491,134.32,134.29,0.04952815]
[1765229428847,107.3384,134.4,134.29,104.29032815]
[1765229429047,9.11846745,134.43,134.34,104.2034]
[1765229429247,3.18,134.43,134.36,104.1885]
[1765229429655,3.18,134.43,134.36,110.8859]
[1765229429968,3.22926548,134.41,134.38,0.05113659]
[1765229430258,9.93210342,134.41,134.38,0.05312493]
[1765229430469,3.18,134.39,134.32,63.34]
[1765229430658,3.18,134.34,134.25,6.7028]
[1765229430861,3.18,134.34,134.26,63.34]
[1765229431061,3.18,134.34,134.27,104.2591]
[1765229431452,0.05555217,134.32,134.29,0.05450727]
[1765229432358,0.05555217,134.32,134.3,110.9349]
[1765229432661,3.23555217,134.32,134.29,0.05450727]
[1765229434966,3.18,134.31,134.29,0.05450727]
[1765229435368,9.8808,134.31,134.29,0.05450727]
[1765229435757,3.18,134.3,134.19,104.321]
[1765229435971,3.18,134.28,134.19,70.0261]
[1765229436359,9.8831,134.26,134.19,63.32]
[1765229436556,3.18,134.25,134.19,63.32]
[1765229436761,0.05397188,134.23,134.21,0.05460883]
[1765229436959,3.18,134.22,134.21,0.05460883]
[1765229437467,6.75827188,134.23,134.21,0.05460883]
[1765229437468,0.05397188,134.23,134.21,0.05460883]
[1765229437863,3.23397188,134.23,134.21,0.05460883]
[1765229438566,0.05397188,134.23,134.21,6.75960883]
[1765229438969,0.05397188,134.23,134.21,111.06490883]
[1765229439480,5.48686055,134.31,134.27,104.2564]
[1765229439663,3.18,134.34,134.28,104.2484]
[1765229439867,3.18,134.34,134.29,5.93846745]
[1765229440168,5.49177318,134.37,134.31,6.7]
[1765229440367,3.23009595,134.35,134.33,0.05300186]
[1765229441058,3.23009595,134.35,134.26,104.2637]
[1765229441259,3.18,134.35,134.26,104.2637]
[1765229441472,3.18,134.34,134.27,104.2559]
[1765229441862,3.18,134.34,134.27,5.93846745]
[1765229442062,0.05688693,134.32,134.29,0.05643879]
[1765229442262,3.23688693,134.32,134.29,0.05643879]
[1765229442462,3.18,134.3,134.21,5.93846745]
[1765229442668,3.18,134.29,134.21,5.93846745]
[1765229443268,8.67177318,134.29,134.21,5.93846745]
[1765229443469,104.23,134.31,134.24,0.05346136]
[1765229443470,3.22834797,134.26,134.24,0.05346136]
[1765229443672,3.23070798,134.26,134.24,0.05346136]
[1765229444070,0.05070798,134.26,134.24,0.05346136]
[1765229445869,3.23070798,134.26,134.24,0.05346136]
[1765229446071,3.23070798,134.26,134.19,113.58648869]
[1765229446072,3.23070798,134.26,134.19,6.706]
[1765229446270,5.51336737,134.25,134.19,6.706]
[1765229446569,3.23070798,134.26,134.19,6.706]
[1765229446764,5.5202293,134.25,134.19,6.706]
[1765229447068,3.23070798,134.26,134.17,167.6523]
[1765229447069,8.70031462,134.24,134.21,0.05332868]
[1765229447273,0.05659556,134.24,134.21,104.35572868]
[1765229447672,0.05659556,134.24,134.22,63.32]
[1765229448271,0.05659556,134.24,134.22,70.0246]
[1765229450174,0.05659556,134.24,134.22,63.32]
[1765229452075,0.05659556,134.24,134.22,70.0245]
[1765229452284,6.78409375,134.29,134.24,104.2793]
[1765229452479,5.55311642,134.28,134.24,113.54808869]
[1765229452684,3.15,134.3,134.24,9.26878869]
[1765229452885,8.70311511,134.29,134.24,9.26878869]
[1765229453182,5.60616798,134.28,134.25,0.05338703]
[1765229453383,5.55311511,134.27,134.25,6.75658703]
[1765229453586,3.20305287,134.28,134.25,6.75658703]
[1765229453790,5.55701261,134.27,134.25,6.75658703]
[1765229454084,0.05305287,134.28,134.25,6.75658703]
[1765229454385,5.55701291,134.27,134.26,63.32]
[1765229454579,3.15,134.26,134.19,104.3166]
[1765229454779,5.55701291,134.25,134.19,167.6366]
[1765229454975,3.15,134.26,134.19,167.6366]
[1765229455179,5.56199534,134.25,134.19,167.6366]
[1765229455384,5.57032183,134.24,134.19,167.6366]
[1765229455583,107.4196,134.26,134.14,126.7867]
[1765229455781,9.93409375,134.22,134.2,0.04956285]
[1765229455978,5.57032183,134.21,134.2,0.04956285]
[1765229456177,8.72032183,134.21,134.2,0.04956285]
[1765229456578,15.61104917,134.21,134.2,0.04956285]
[1765229456977,12.46104917,134.21,134.2,0.04956285]
[1765229457178,5.57032183,134.21,134.2,0.04956285]
[1765229458990,0.05370464,134.23,134.21,6.7053]
[1765229459683,9.10759788,134.29,134.24,104.2818]
[1765229459879,3.15,134.29,134.25,63.34]
[1765229460080,3.15,134.28,134.25,63.34]
[1765229460397,3.15,134.29,134.25,63.34]
[1765229460596,0.05094183,134.28,134.26,0.05099658]
[1765229464784,3.17094183,134.28,134.26,0.05099658]
[1765229465179,3.17094183,134.28,134.13,104.364]
[1765229465180,3.12,134.23,134.13,104.364]
[1765229465381,3.12,134.23,134.14,63.32]
[1765229465587,3.12,134.22,134.14,63.32]
[1765229465787,118.16229797,134.25,134.16,104.3441]
[1765229465788,8.26700411,134.25,134.16,104.3441]
[1765229465980,3.12,134.23,134.13,104.3649]
[1765229466181,0.05725687,134.19,134.17,0.05159621]
[1765229467195,0.05725687,134.19,134.18,63.34]
[1765229471597,3.12,134.27,134.21,6.7051]
[1765229471902,8.68394417,134.26,134.22,63.34]
[1765229472101,3.12,134.26,134.22,63.34]
[1765229472399,9.8217,134.29,134.22,70.0446]
[1765229472705,0.05701656,134.27,134.24,0.05172432]
[1765229473805,0.05701656,134.27,134.23,6.7042]
[1765229473806,3.12,134.25,134.15,104.3512]
[1765229474096,5.5659078,134.24,134.16,63.34]
[1765229474299,5.5659078,134.23,134.16,63.34]
[1765229474504,3.12,134.25,134.16,63.34]
[1765229474702,5.57277188,134.24,134.16,63.34]
[1765229474900,0.05306233,134.22,134.19,0.04874003]
[1765229475101,0.05306233,134.22,134.2,63.34]
[1765229475800,3.17306233,134.22,134.2,63.34]
[1765229476002,3.12,134.2,134.14,6.7085]
[1765229476196,8.69777374,134.19,134.15,63.34]
[1765229476406,8.69777374,134.18,134.15,63.34]
[1765229476703,3.12,134.18,134.15,63.34]
[1765229477002,3.16727453,134.18,134.15,63.38771069]
[1765229477301,0.04727453,134.18,134.15,63.38771069]
[1765229477493,3.16727453,134.18,134.15,0.04771069]
[1765229477701,3.12,134.16,134.11,63.34]
[1765229477994,5.57979278,134.15,134.11,63.34]
[1765229478297,3.12,134.19,134.11,63.34]
[1765229478503,5.57758376,134.18,134.11,63.34]
[1765229478703,0.05223931,134.16,134.13,104.41428437]
[1765229478902,5.57635555,134.21,134.13,104.3672]
[1765229479103,3.2798013,134.18,134.16,0.04984096]
[1765229479303,5.57635555,134.17,134.16,0.04984096]
[1765229481098,0.0498013,134.18,134.16,0.04984096]
[1765229482507,5.58084847,134.22,134.18,104.3284]
[1765229482813,3.23,134.26,134.19,63.36]
[1765229483013,5.58039034,134.25,134.19,63.36]
[1765229483309,8.81039034,134.24,134.19,63.36]
[1765229483512,5.63223202,134.23,134.2,6.76044553]
[1765229483704,0.05184168,134.23,134.2,6.76044553]
[1765229483904,0.05184168,134.23,134.2,0.05474553]
[1765229484512,0.05184168,134.23,134.21,6.7052]
[1765229487219,5.58312207,134.29,134.23,104.2848]
[1765229487418,5.58312207,134.28,134.24,63.34]
[1765229487713,3.23,134.3,134.24,70.0434]
[1765229487927,5.58441997,134.29,134.22,104.2959]
[1765229488217,0.04870298,134.27,134.25,63.34]
[1765229488422,5.58310488,134.31,134.25,167.66683925]
[1765229488610,6.6992,134.34,134.25,167.66683925]
[1765229488611,0.05303082,134.29,134.25,167.66683925]
[1765229488810,0.05303082,134.29,134.26,0.05440872]
[1765229489515,0.05303082,134.29,134.28,6.7017]
[1765229489710,0.05303082,134.29,134.28,70.0417]
[1765229490016,3.23,134.38,134.28,63.34]
[1765229490220,5.57901152,134.37,134.28,63.34]